fUSD/lending_fUSD_20240817
["ID","MTS","AMOUNT","RATE_DAILY","PERIOD"]
[335158997,1723893032366,-12316.28111925,0.000108,2]
[335158998,1723893032376,-272.6122,0.000108,2]
[335158999,1723893032385,-499.99,0.00010862,2]
[335159001,1723893032395,-530.32593624,0.00010862,2]
[335159002,1723893032405,-155.06759742,0.00010862,2]
[335159003,1723893032415,-210.94358074,0.00010862,2]
[335159004,1723893032425,-1306.44389609,0.00010888,2]
[335159005,1723893032435,-155.0,0.0001089,2]
[335159006,1723893032444,-5587.8235,0.0001089,2]
[335159008,1723893032454,-150.0,0.00010897,2]
[335159009,1723893032463,-600.0,0.00010898,2]
[335159010,1723893032472,-500.0,0.00010898,2]
[335159011,1723893032482,-3509.1,0.00010898,2]
[335159012,1723893032491,-1532.74,0.00010898,2]
[335159013,1723893032500,-1400.89,0.00010898,2]
[335159015,1723893032510,-4208.41032025,0.00010899,2]
[335159016,1723893032521,-3749.97599785,0.00010899,2]
[335159017,1723893032532,-337.01913656,0.00010899,2]
[335159018,1723893032544,-653.26372546,0.00010899,2]
[335159019,1723893032555,-4289.95371302,0.00010899,2]
[335159021,1723893032568,-802.96245672,0.00010899,2]
[335159082,1723893038281,-1275.34004324,0.00010899,2]
[335159083,1723893038294,-3962.55749776,0.00010899,2]
[335159084,1723893038305,-2497.15239399,0.00010899,2]
[335159085,1723893038318,-3405.77036804,0.00010899,2]
[335159086,1723893038327,-19185.08059963,0.00010899,2]
[335159087,1723893038338,-308.49574352,0.00010899,2]
[335159088,1723893038359,-659.75132017,0.00010899,2]
[335159089,1723893038370,-5029.07798957,0.00010899,2]
[335159090,1723893038379,-3294.15601043,0.00010899,2]
[335159094,1723893040316,-1679.44999998,0.00010899,2]
[335159097,1723893040394,-20208.79964248,0.00010899,2]
[335159098,1723893040404,-25182.40565289,0.00010899,2]
[335159099,1723893040413,-25182.40565289,0.00010899,2]
[335159100,1723893040423,-25182.40565289,0.00010899,2]
[335159101,1723893040433,-25182.40565289,0.00010899,2]
[335159102,1723893040442,-25182.40565289,0.00010899,2]
[335159103,1723893040451,-25182.40565289,0.00010899,2]
[335159104,1723893040461,-2000.0,0.000109,2]
[335159105,1723893040470,-151.0,0.000109,2]
[335159106,1723893040480,-25182.40565289,0.000109,2]
[335159107,1723893040490,-151.0,0.000109,2]
[335159108,1723893040499,-3805.0128341,0.000109,2]
[335159109,1723893040508,-190.21507708,0.00010958,2]
[335159110,1723893040518,-500.0,0.00010958,2]
[335159111,1723893040527,-500.0,0.00010958,2]
[335159112,1723893040536,-500.0,0.00010958,2]
[335159113,1723893040546,-413.65718201,0.00010958,2]
[335159114,1723893040555,-150.0,0.00010959,2]
[335159115,1723893040565,-2000.0,0.00010959,2]
[335159116,1723893040574,-250.0,0.00010959,2]
[335159117,1723893040584,-487.87,0.00010959,2]
[335159118,1723893040594,-1500.0,0.00010959,2]
[335159119,1723893040603,-151.0,0.00010959,2]
[335159120,1723893040612,-257.762099,0.00010959,2]
[335159121,1723893040622,-759.5254191,0.00010983,2]
[335159122,1723893040631,-5325.9581015,0.00010983,2]
[335159123,1723893040640,-160.9727789,0.00010983,2]
[335159124,1723893040650,-500.0,0.00010988,2]
[335159125,1723893040659,-500.0,0.00010988,2]
[335159126,1723893040669,-527.02,0.00010988,2]
[335159127,1723893040678,-1442.1,0.00010988,2]
[335159128,1723893040688,-516.38531832,0.00010989,2]
[335159129,1723893040698,-500.0,0.00010989,2]
[335159130,1723893040708,-500.0,0.00010989,2]
[335159131,1723893040717,-500.0,0.00010989,2]
[335159132,1723893040727,-500.0,0.00010989,2]
[335159133,1723893040737,-3509.1,0.00010989,2]
[335159134,1723893040747,-500.0,0.00010989,2]
[335159135,1723893040756,-500.0,0.00010989,2]
[335159136,1723893040766,-215.09229919,0.00010989,2]
[335159137,1723893040775,-1532.74,0.00010989,2]
[335159138,1723893040785,-1400.89,0.00010989,2]
[335159139,1723893040796,-527.02,0.00010989,2]
[335159140,1723893040805,-1442.1,0.00010989,2]
[335159141,1723893040815,-178950.10270885,0.0001099,2]
[335159142,1723893040824,-95276.52180615,0.0001099,2]
[335159143,1723893040834,-2000.0,0.0001099,2]
[335159144,1723893040843,-200.0,0.0001099,2]
[335159145,1723893040852,-200.0,0.0001099,2]
[335159146,1723893040861,-200.0,0.0001099,2]
[335159147,1723893040871,-151.0,0.0001099,2]
[335159148,1723893040880,-151.0,0.0001099,2]
[335159149,1723893040890,-151.0,0.0001099,2]
[335159150,1723893040900,-151.0,0.0001099,2]
[335159151,1723893040909,-1917.66654,0.0001099,2]
[335159152,1723893040919,-151.0,0.0001099,2]
[335159153,1723893040928,-151.0,0.0001099,2]
[335159154,1723893040938,-4739.3308324,0.00010992,2]
[335159155,1723893040948,-4152.7035632,0.00010992,2]
[335159156,1723893040957,-3566.0762941,0.00010992,2]
[335159157,1723893040971,-2979.4490249,0.00010992,2]
[335159158,1723893040981,-2392.8217557,0.00010992,2]
[335159159,1723893040990,-160.9727789,0.00010992,2]
[335159160,1723893040999,-160.9727789,0.00010992,2]
[335159161,1723893041009,-160.9727789,0.00010992,2]
[335159162,1723893041018,-160.9727789,0.00010992,2]
[335159163,1723893041027,-160.9727789,0.00010992,2]
[335159164,1723893041036,-156.13562367,0.00010996,2]
[335159165,1723893041047,-780.67811835,0.00010997,2]
[335159166,1723893041057,-500.0,0.00010998,2]
[335159167,1723893041066,-500.0,0.00010998,2]
[335159168,1723893041075,-331.24565388,0.00010998,2]
[335159169,1723893041084,-500.0,0.00010998,2]
[335159170,1723893041093,-500.0,0.00010998,2]
[335159171,1723893041103,-500.0,0.00010998,2]
[335159172,1723893041112,-500.0,0.00010998,2]
[335159173,1723893041121,-3509.1,0.00010998,2]
[335159174,1723893041131,-3509.1,0.00010998,2]
[335159175,1723893041140,-500.0,0.00010998,2]
[335159176,1723893041149,-500.0,0.00010998,2]
[335159177,1723893041158,-500.0,0.00010998,2]
[335159178,1723893041168,-500.0,0.00010998,2]
[335159179,1723893041177,-1532.74,0.00010998,2]
[335159180,1723893041186,-1532.74,0.00010998,2]
[335159181,1723893041195,-1400.89,0.00010998,2]
[335159182,1723893041205,-1400.89,0.00010998,2]
[335159183,1723893041214,-527.02,0.00010998,2]
[335159184,1723893041224,-527.02,0.00010998,2]
[335159185,1723893041234,-1442.1,0.00010998,2]
[335159186,1723893041243,-1442.1,0.00010998,2]
[335159187,1723893041252,-931.0,0.00010999,2]
[335159188,1723893041262,-191.3086513,0.00010999,2]
[335159189,1723893041271,-43088.33520709,0.00010999,2]
[335159190,1723893041299,-91299.51914597,0.00010999,2]
[335159191,1723893041309,-959.24343264,0.00010999,2]
[335159192,1723893041321,-7419.21920943,0.00010999,2]
[335159193,1723893041332,-12680.5478965,0.00010999,2]
[335159194,1723893041343,-15502.56404239,0.00010999,2]
[335159195,1723893041359,-4036.2852994,0.00010999,2]
[335159196,1723893041370,-1046.36689289,0.00010999,2]
[335159197,1723893041381,-250.0,0.00010999,2]
[335159198,1723893041391,-616.89321857,0.00010999,2]
[335159203,1723893043253,-686.77,0.000109,2]
[335159205,1723893044296,-712.72580957,0.000109,2]
[335159206,1723893044310,-819.59419043,0.000109,2]
[335159207,1723893044320,-516.38531832,0.00010989,2]
[335159208,1723893044330,-190.28219023,0.00010999,2]
[335159209,1723893044343,-3792.97760677,0.00010999,2]
[335159211,1723893044354,-421.401,0.00010999,2]
[335159213,1723893044367,-558.39963997,0.00010999,2]
[335159214,1723893044380,-325.95,0.00010999,2]
[335159215,1723893044392,-266.37072535,0.00010999,2]
[335159217,1723893044404,-406.07,0.00010999,2]
[335159219,1723893045242,-293.4,0.00010999,2]
[335159220,1723893045254,-686.6132303,0.00010999,2]
[335159221,1723893045265,-906.17357973,0.00010999,2]
[335159222,1723893045277,-763.43869,0.00010999,2]
[335159223,1723893045289,-25099.28448745,0.00010999,2]
[335159246,1723893073333,400.0,9.9e-05,3]
[335159258,1723893161057,360.0,9.931e-05,2]
[335159277,1723893243566,217.33,8.219e-05,2]
[335159280,1723893257063,242.0,9.92e-05,2]
[335159281,1723893257396,242.0,9.8e-05,2]
[335159282,1723893257712,242.0,9.68e-05,2]
[335159286,1723893390969,250.0,9.805e-05,2]
[335159287,1723893398632,170.67,9.805e-05,2]
[335159288,1723893410669,262.75,9.802e-05,2]
[335159289,1723893425162,9712.74,9.823e-05,2]
[335159291,1723893473760,258.62,9.802e-05,2]
[335159292,1723893526659,153.9,7.828e-05,2]
[335159293,1723893690798,206.46,8.219e-05,2]
[335159294,1723893734129,500.0,9.752e-05,2]
[335159295,1723893779672,1000.0,9.755e-05,2]
[335159296,1723893886046,294.39,9.747e-05,2]
[335159302,1723894022526,300.0,9.9e-05,3]
[335159304,1723894049730,3038.34641055,9.943e-05,2]
[335159495,1723894232276,-494.22410505,0.0001,2]
[335159496,1723894232286,-700.0,0.0001,3]
[335159497,1723894232296,-446.0096229,0.0001,3]
[335159498,1723894232305,-316.9035925,0.00010009,2]
[335159499,1723894232314,-316.9035925,0.00010009,2]
[335159500,1723894232323,-292.71591566,0.00010009,2]
[335159501,1723894232332,-1250.65459456,0.00010026,2]
[335159502,1723894232341,-292.71591566,0.00010026,2]
[335159503,1723894232350,-242.0,0.0001004,2]
[335159504,1723894232359,-335.75762632,0.000101,3]
[335159505,1723894232370,-764.24237368,0.000101,3]
[335159506,1723894232380,-242.0,0.0001016,2]
[335159507,1723894232390,-236.32779846,0.000102,2]
[335159508,1723894232399,-1500.0,0.000102,3]
[335159509,1723894232408,-5081.5,0.000102,2]
[335159510,1723894232417,-242.0,0.0001029,2]
[335159511,1723894232427,-1900.0,0.000103,3]
[335159513,1723894232441,-499.99,0.000103,2]
[335159514,1723894232450,-300.0,0.000104,3]
[335159515,1723894232459,-242.0,0.0001041,2]
[335159516,1723894232469,-206.46,0.00010464,2]
[335159517,1723894232480,-2342.90099088,0.00010471,2]
[335159518,1723894232489,-300.0,0.000105,3]
[335159519,1723894232499,-202.0,0.0001053,2]
[335159521,1723894232508,-242.0,0.0001053,2]
[335159522,1723894232518,-152.67384191,0.00010584,2]
[335159523,1723894232528,-1106.89485806,0.00010584,2]
[335159524,1723894232537,-322.81251756,0.00010584,2]
[335159525,1723894232547,-300.0,0.000106,3]
[335159526,1723894232557,-202.0,0.0001065,2]
[335159527,1723894232566,-242.0,0.0001065,2]
[335159528,1723894232575,-168.05434707,0.00010677,2]
[335159529,1723894232585,-150.0,0.00010679,2]
[335159530,1723894232594,-179038.77725326,0.0001068,2]
[335159532,1723894232611,-2174.47,0.0001068,2]
[335159534,1723894232621,-1074.32,0.0001068,2]
[335159535,1723894232638,-397.56791311,0.0001068,2]
[335159536,1723894232649,-642.3977412,0.0001068,2]
[335159537,1723894232660,-3702.08686573,0.0001068,2]
[335159538,1723894232674,-2338.34835547,0.0001068,2]
[335159539,1723894232685,-14259.07907785,0.0001068,2]
[335159540,1723894232696,-956.69375819,0.0001068,2]
[335159541,1723894232715,-678.69156372,0.0001068,2]
[335159542,1723894232726,-9051.45447527,0.0001068,2]
[335159543,1723894238208,-659.14210418,0.0001068,2]
[335159546,1723894238220,-746.48651101,0.0001068,2]
[335159547,1723894238448,-1587.81759761,0.0001068,2]
[335159548,1723894238484,-13509.68924109,0.0001068,2]
[335159559,1723894240606,-1242.32300364,0.0001068,2]
[335159570,1723894243542,-3486.10457414,0.0001068,2]
[335159572,1723894244199,-403.92333797,0.0001068,2]
[335159573,1723894244211,-10852.61019446,0.0001068,2]
[335159574,1723894244225,-300.0,0.0001068,2]
[335159575,1723894244237,-3581.547299,0.0001068,2]
[335159576,1723894244248,-5296.76582824,0.0001068,2]
[335159588,1723894246522,-3559.9489424,0.0001068,2]
[335159589,1723894246579,-2925.7355855,0.0001068,2]
[335159603,1723894278064,201.14,8.219e-05,2]
[335159604,1723894387054,215.85,9.918e-05,2]
[335159608,1723894449048,-1000.0,0.0001,2]
[335159609,1723894449569,1000.0,9.925e-05,2]
[335159610,1723894460900,-201.14,0.00010475,2]
[335159611,1723894460927,-782.46178449,0.0001058,2]
[335159612,1723894461123,-474.3151,0.0001058,2]
[335159613,1723894461150,-322.06855872,0.00010584,2]
[335159614,1723894461177,-737.92990536,0.00010584,2]
[335159615,1723894461203,-150.0,0.00010679,2]
[335159616,1723894461230,-300.0,0.00010679,2]
[335159617,1723894461257,-668565.08465143,0.0001068,2]
[335159618,1723894499498,-5833.2027,0.0001058,2]
[335159619,1723894499526,-9281.7973,0.0001058,2]
[335159620,1723894501987,160.36,9.911e-05,2]
[335159621,1723894531994,272.52,9.899e-05,2]
[335159622,1723894536050,6986.88,9.886e-05,2]
[335159623,1723894565510,2000.0,0.0002,60]
[335159624,1723894633740,172.82,9.902e-05,2]
[335159625,1723894744093,214.96,8.219e-05,2]
[335159626,1723894807919,292.71591566,9.962e-05,2]
[335159627,1723894929807,258.47952218,9.943e-05,2]
[335159628,1723894959992,155.0,9.943e-05,2]
[335159629,1723894970390,200.0,9.799e-05,2]
[335159630,1723894989650,155.0,9.943e-05,2]
[335159631,1723895015482,515.27605672,9.943e-05,2]
[335159632,1723895104928,167.24,9.821e-05,2]
[335159633,1723895197216,547.05223763,9.943e-05,2]
[335159634,1723895235100,200.0,9.9e-05,3]
[335159641,1723895386725,204.21,8.219e-05,2]
[335159652,1723895431434,-550.0,0.0001,2]
[335159653,1723895431443,-500.0,0.0001,3]
[335159654,1723895431452,-800.0,0.000101,3]
[335159655,1723895431462,-300.0,0.00010199,2]
[335159656,1723895431471,-1100.0,0.000102,3]
[335159657,1723895431480,-950.0,0.000103,3]
[335159658,1723895431491,-326.80050338,0.000103,3]
[335159659,1723895431512,-123.19949662,0.000103,3]
[335159660,1723895431521,-200.0,0.000104,3]
[335159661,1723895431531,-204.21,0.00010461,2]
[335159662,1723895431540,-4794.2461,0.00010471,2]
[335159663,1723895431549,-150.0,0.00010479,2]
[335159664,1723895431559,-6393.69639262,0.0001048,2]
[335159665,1723895431570,-2852.7448324,0.0001048,2]
[335159666,1723895431595,-1676.12452515,0.0001048,2]
[335159667,1723895431606,-628.42,0.0001048,2]
[335159668,1723895431705,-293.41476327,0.0001048,2]
[335159669,1723895431716,-2248.6741294,0.0001048,2]
[335159670,1723895431757,-892.36974331,0.0001048,2]
[335159673,1723895437476,-410.22903602,0.0001048,2]
[335159674,1723895437487,-1120.66502401,0.0001048,2]
[335159675,1723895437505,-12212.22040255,0.0001048,2]
[335159676,1723895437518,-14042.43253206,0.0001048,2]
[335159677,1723895437529,-1527.0295442,0.0001048,2]
[335159678,1723895437549,-998.52381322,0.0001048,2]
[335159679,1723895437562,-28837.17204591,0.0001048,2]
[335159680,1723895437589,-20811.57231588,0.0001048,2]
[335159681,1723895437598,-1938.7076,0.0001048,2]
[335159682,1723895437606,-10273.716,0.0001048,2]
[335159683,1723895437615,-1000.0,0.0001048,2]
[335159684,1723895437624,-8229.3478,0.0001048,2]
[335159685,1723895437633,-200.0,0.000105,3]
[335159686,1723895437643,-194046.0893,0.0001058,2]
[335159688,1723895437652,-3237.1381,0.0001058,2]
[335159690,1723895437661,-4871.7821,0.0001058,2]
[335159692,1723895437670,-500.0,0.0001058,2]
[335159694,1723895437679,-7500.0,0.0001058,2]
[335159695,1723895437688,-183.60846,0.0001058,2]
[335159697,1723895437697,-327.92758471,0.0001058,2]
[335159699,1723895437706,-200.0,0.000106,3]
[335159701,1723895437717,-183.60846,0.0001062,2]
[335159703,1723895437728,-183.60846,0.0001066,2]
[335159705,1723895437739,-1397.69115414,0.0001067,2]
[335159707,1723895437749,-885.25,0.0001067,2]
[335159709,1723895437759,-499.99,0.0001067,2]
[335159711,1723895437769,-9820.99,0.0001067,2]
[335159712,1723895437778,-1000.0,0.0001067,2]
[335159713,1723895437788,-197560.03290649,0.0001068,2]
[335159714,1723895437798,-183.60845,0.0001068,2]
[335159715,1723895437979,-183.60846,0.0001068,2]
[335159716,1723895437989,-500.0,0.00010684,2]
[335159717,1723895437999,-500.0,0.00010684,2]
[335159718,1723895438008,-500.0,0.00010684,2]
[335159719,1723895438017,-500.0,0.00010684,2]
[335159720,1723895438026,-2924.25,0.00010684,2]
[335159721,1723895438035,-2924.25,0.00010684,2]
[335159722,1723895438044,-177.18412488,0.00010684,2]
[335159723,1723895438055,-500.0,0.00010684,2]
[335159724,1723895438064,-500.0,0.00010684,2]
[335159725,1723895438073,-1277.29,0.00010684,2]
[335159726,1723895438082,-1277.29,0.00010684,2]
[335159727,1723895438091,-500.0,0.00010684,2]
[335159728,1723895438100,-500.0,0.00010684,2]
[335159729,1723895438110,-1167.41,0.00010684,2]
[335159730,1723895438120,-1167.41,0.00010684,2]
[335159731,1723895438129,-617.88417316,0.00010684,2]
[335159732,1723895438139,-500.0,0.00010684,2]
[335159733,1723895438148,-500.0,0.00010684,2]
[335159734,1723895438157,-1201.75,0.00010684,2]
[335159735,1723895438166,-1201.75,0.00010684,2]
[335159736,1723895438175,-962.80465455,0.00010699,2]
[335159737,1723895438184,-183.60846,0.000107,2]
[335159738,1723895438193,-200.0,0.000107,3]
[335159739,1723895438202,-420.59940575,0.00010761,2]
[335159740,1723895438211,-1000.0,0.0001077,2]
[335159741,1723895438220,-706.1080832,0.0001077,2]
[335159742,1723895438230,-202.0,0.0001078,2]
[335159743,1723895438239,-242.0,0.0001078,2]
[335159744,1723895438248,-764.0,0.00010786,2]
[335159745,1723895438257,-388.30444484,0.00010789,2]
[335159746,1723895438266,-12316.28111925,0.000108,2]
[335159747,1723895438275,-998.0,0.000108,3]
[335159748,1723895438285,-524.74723859,0.00010862,2]
[335159749,1723895438294,-292.71591566,0.00010862,2]
[335159750,1723895438303,-500.0,0.0001087,2]
[335159751,1723895438312,-1000.0,0.0001087,2]
[335159752,1723895438321,-500.0,0.0001087,2]
[335159753,1723895438330,-1000.0,0.0001087,2]
[335159754,1723895438339,-500.0,0.0001087,2]
[335159755,1723895438348,-1000.0,0.0001087,2]
[335159756,1723895438357,-500.0,0.0001087,2]
[335159757,1723895438366,-1000.0,0.0001087,2]
[335159758,1723895438376,-500.0,0.0001087,2]
[335159759,1723895438385,-1000.0,0.0001087,2]
[335159760,1723895438395,-153.69611438,0.00010897,2]
[335159761,1723895438404,-65839.7843,0.00010899,2]
[335159762,1723895438413,-282.931068,0.00010899,2]
[335159763,1723895438422,-450.60251024,0.00010899,2]
[335159764,1723895438432,-450.60251024,0.00010899,2]
[335159765,1723895438441,-450.60251024,0.00010899,2]
[335159766,1723895438450,-450.60251024,0.00010899,2]
[335159767,1723895438460,-450.60251024,0.00010899,2]
[335159768,1723895438469,-450.60251024,0.00010899,2]
[335159769,1723895438479,-151.0,0.00010899,2]
[335159770,1723895438488,-450.60251024,0.00010899,2]
[335159771,1723895438497,-450.60251024,0.00010899,2]
[335159772,1723895438507,-450.60251024,0.00010899,2]
[335159773,1723895438516,-151.0,0.00010899,2]
[335159774,1723895438526,-202.0,0.000109,2]
[335159775,1723895438535,-2000.0,0.000109,2]
[335159776,1723895438545,-242.0,0.000109,2]
[335159777,1723895438555,-450.60251024,0.000109,2]
[335159778,1723895438564,-619.16244216,0.000109,2]
[335159779,1723895438573,-619.16244216,0.000109,2]
[335159780,1723895438583,-619.16244216,0.000109,2]
[335159781,1723895438592,-619.16244216,0.000109,2]
[335159782,1723895438601,-619.16244216,0.000109,2]
[335159783,1723895438611,-619.16244216,0.000109,2]
[335159784,1723895438620,-619.16244216,0.000109,2]
[335159785,1723895438629,-619.16244216,0.000109,2]
[335159786,1723895438638,-1940.23,0.000109,2]
[335159787,1723895438647,-734.36992498,0.000109,2]
[335159788,1723895438656,-178.81007375,0.000109,2]
[335159789,1723895438666,-161.29938064,0.000109,2]
[335159790,1723895438675,-500.0,0.00010957,2]
[335159791,1723895438684,-500.0,0.00010957,2]
[335159792,1723895438694,-1201.75,0.00010957,2]
[335159793,1723895438703,-408.70465492,0.00010958,2]
[335159794,1723895438713,-500.0,0.00010958,2]
[335159795,1723895438722,-459.93083446,0.00010958,2]
[335159796,1723895438731,-500.0,0.00010958,2]
[335159797,1723895438740,-352.06617865,0.00010958,2]
[335159798,1723895438750,-500.0,0.00010958,2]
[335159799,1723895438760,-634.88096441,0.00010958,2]
[335159800,1723895438770,-499.99999999,0.00010958,2]
[335159801,1723895438780,-500.0,0.00010958,2]
[335159802,1723895438790,-500.0,0.00010958,2]
[335159803,1723895438800,-500.0,0.00010958,2]
[335159804,1723895438810,-500.0,0.00010958,2]
[335159805,1723895438820,-500.0,0.00010958,2]
[335159806,1723895438830,-302.4361525,0.00010958,2]
[335159807,1723895438841,-264.05029126,0.00010958,2]
[335159808,1723895438852,-2924.25,0.00010958,2]
[335159809,1723895438865,-1167.41,0.00010958,2]
[335159810,1723895438875,-150.0,0.00010959,2]
[335159811,1723895438884,-250.0,0.00010959,2]
[335159812,1723895438895,-422.69,0.00010959,2]
[335159813,1723895438905,-1500.0,0.00010959,2]
[335159814,1723895438915,-294.39,0.00010965,2]
[335159815,1723895438925,-500.0,0.0001097,2]
[335159816,1723895438935,-1000.0,0.0001097,2]
[335159817,1723895438945,-500.0,0.0001097,2]
[335159818,1723895438955,-1000.0,0.0001097,2]
[335159819,1723895438966,-500.0,0.0001097,2]
[335159820,1723895438975,-1000.0,0.0001097,2]
[335159821,1723895438985,-155.0,0.00010979,2]
[335159822,1723895438996,-2259.0,0.0001098,2]
[335159823,1723895439006,-583.31364279,0.00010989,2]
[335159824,1723895439016,-500.0,0.0001099,2]
[335159825,1723895439026,-500.0,0.0001099,2]
[335159826,1723895439036,-500.0,0.0001099,2]
[335159827,1723895439045,-1277.29,0.00010991,2]
[335159828,1723895439055,-1762.9372648,0.00010992,2]
[335159829,1723895439064,-274.8040018,0.00010992,2]
[335159830,1723895439074,-202.0,0.00010995,2]
[335159831,1723895439084,-202.0,0.00010995,2]
[335159832,1723895439095,-202.0,0.00010995,2]
[335159833,1723895439105,-202.0,0.00010995,2]
[335159834,1723895439114,-202.0,0.00010995,2]
[335159835,1723895439124,-202.0,0.00010995,2]
[335159836,1723895439134,-202.0,0.00010995,2]
[335159837,1723895439144,-202.0,0.00010995,2]
[335159838,1723895439154,-242.0,0.00010995,2]
[335159839,1723895439163,-242.0,0.00010995,2]
[335159840,1723895439172,-242.0,0.00010995,2]
[335159841,1723895439181,-242.0,0.00010995,2]
[335159842,1723895439191,-242.0,0.00010995,2]
[335159843,1723895439200,-242.0,0.00010995,2]
[335159844,1723895439210,-242.0,0.00010995,2]
[335159845,1723895439219,-242.0,0.00010995,2]
[335159847,1723895439229,-30101.10405727,0.00010998,2]
[335159848,1723895439239,-500.0,0.00010998,2]
[335159849,1723895439248,-500.0,0.00010998,2]
[335159850,1723895439258,-1201.75,0.00010998,2]
[335159851,1723895439267,-38585.4406757,0.00010999,2]
[335159852,1723895439278,-150.316515,0.00010999,2]
[335159853,1723895439288,-2000.0,0.00010999,2]
[335159854,1723895439299,-200.0,0.00010999,2]
[335159855,1723895439310,-742.0,0.00010999,2]
[335159856,1723895439320,-742.0,0.00010999,2]
[335159857,1723895439329,-742.0,0.00010999,2]
[335159858,1723895439339,-742.0,0.00010999,2]
[335159860,1723895439350,-742.0,0.00010999,2]
[335159861,1723895439360,-742.0,0.00010999,2]
[335159862,1723895439369,-742.0,0.00010999,2]
[335159863,1723895439379,-742.0,0.00010999,2]
[335159864,1723895439389,-742.0,0.00010999,2]
[335159865,1723895439400,-742.0,0.00010999,2]
[335159866,1723895439411,-151.0,0.00010999,2]
[335159867,1723895439421,-151.0,0.00010999,2]
[335159868,1723895439430,-500.0,0.00010999,2]
[335159869,1723895439440,-500.0,0.00010999,2]
[335159870,1723895439450,-500.0,0.00010999,2]
[335159871,1723895439461,-500.0,0.00010999,2]
[335159872,1723895439471,-500.0,0.00010999,2]
[335159873,1723895439481,-500.0,0.00010999,2]
[335159875,1723895439491,-500.0,0.00010999,2]
[335159876,1723895439500,-500.0,0.00010999,2]
[335159878,1723895439510,-500.0,0.00010999,2]
[335159880,1723895439520,-500.0,0.00010999,2]
[335159882,1723895439530,-500.0,0.00010999,2]
[335159883,1723895439539,-500.0,0.00010999,2]
[335159884,1723895439550,-500.0,0.00010999,2]
[335159885,1723895439561,-500.0,0.00010999,2]
[335159886,1723895439572,-500.0,0.00010999,2]
[335159887,1723895439581,-648.54509544,0.00010999,2]
[335159888,1723895439591,-500.0,0.00010999,2]
[335159889,1723895439601,-500.0,0.00010999,2]
[335159890,1723895439611,-500.0,0.00010999,2]
[335159891,1723895439620,-500.0,0.00010999,2]
[335159892,1723895439630,-500.0,0.00010999,2]
[335159893,1723895439640,-481.71,0.00010999,2]
[335159894,1723895439650,-2924.25,0.00010999,2]
[335159895,1723895439660,-2924.25,0.00010999,2]
[335159896,1723895439671,-2924.25,0.00010999,2]
[335159897,1723895439680,-2924.25,0.00010999,2]
[335159898,1723895439690,-151.0,0.00010999,2]
[335159899,1723895439700,-2924.25,0.00010999,2]
[335159900,1723895439710,-151.0,0.00010999,2]
[335159901,1723895439720,-2924.25,0.00010999,2]
[335159902,1723895439732,-2924.25,0.00010999,2]
[335159903,1723895439742,-2924.25,0.00010999,2]
[335159904,1723895439752,-2924.25,0.00010999,2]
[335159905,1723895439762,-2924.25,0.00010999,2]
[335159906,1723895439772,-2924.25,0.00010999,2]
[335159907,1723895439782,-2924.25,0.00010999,2]
[335159908,1723895439792,-2924.25,0.00010999,2]
[335159909,1723895439802,-2924.25,0.00010999,2]
[335159910,1723895439812,-2924.25,0.00010999,2]
[335159911,1723895439821,-2924.25,0.00010999,2]
[335159912,1723895439831,-2924.25,0.00010999,2]
[335159913,1723895439842,-2924.25,0.00010999,2]
[335159914,1723895439856,-2924.25,0.00010999,2]
[335159915,1723895439865,-2924.25,0.00010999,2]
[335159916,1723895439875,-2924.26911929,0.00010999,2]
[335159917,1723895439885,-500.0,0.00010999,2]